fUST/lending_fUST_20250605
["ID","MTS","AMOUNT","RATE_DAILY","PERIOD"]
[364433268,1749100243581,-3642.77,0.00018745,2]
[364433271,1749100243591,-1702.21,0.00018785,2]
[364433273,1749100243600,-1702.21,0.00018785,2]
[364433275,1749100243610,-1702.21,0.00018785,2]
[364433277,1749100243620,-2359.59511391,0.00018792,3]
[364433279,1749100243633,-440.0,0.00018792,2]
[364433280,1749100243643,-1702.21,0.00018792,2]
[364433282,1749100243654,-440.0,0.00018792,2]
[364433284,1749100243664,-1640.21,0.00018792,2]
[364433287,1749100243674,-440.0,0.00018792,2]
[364433288,1749100243684,-492.26,0.0001884,2]
[364433291,1749100243694,-591.43,0.0001884,2]
[364433293,1749100243704,-496.33,0.0001884,2]
[364433295,1749100243714,-440.0,0.0001884,2]
[364433297,1749100243724,-480.36,0.0001884,2]
[364433299,1749100243733,-440.0,0.0001884,2]
[364433300,1749100243743,-440.0,0.0001884,2]
[364433302,1749100243753,-440.0,0.00018841,2]
[364433304,1749100243762,-827.92,0.00018841,2]
[364433307,1749100243772,-440.0,0.00018841,2]
[364433308,1749100243781,-440.0,0.00018841,2]
[364433310,1749100243791,-809.49862201,0.00018866,2]
[364433312,1749100243801,-229.48950782,0.00018876,2]
[364433314,1749100243811,-160.0,0.00018876,2]
[364433316,1749100243820,-160.0,0.00018876,2]
[364433318,1749100243830,-212.94059491,0.00018876,2]
[364433321,1749100243841,-160.0,0.00018876,2]
[364433322,1749100243851,-160.0,0.00018876,2]
[364433325,1749100243860,-423.7637613,0.00018876,2]
[364433326,1749100243869,-440.0,0.00019066,2]
[364433328,1749100243880,-440.0,0.00019066,2]
[364433330,1749100243889,-1640.21,0.00019066,2]
[364433332,1749100243898,-440.0,0.00019066,2]
[364433334,1749100243908,-809.49862201,0.00019107,2]
[364433336,1749100243917,-492.26,0.00019114,2]
[364433338,1749100243927,-591.43,0.00019114,2]
[364433340,1749100243936,-496.33,0.00019114,2]
[364433342,1749100243945,-440.0,0.00019114,2]
[364433344,1749100243955,-480.36,0.00019114,2]
[364433346,1749100243964,-440.0,0.00019114,2]
[364433348,1749100243974,-440.0,0.00019114,2]
[364433350,1749100243988,-440.0,0.00019115,2]
[364433352,1749100243999,-827.92,0.00019115,2]
[364433354,1749100244008,-440.0,0.00019115,2]
[364433356,1749100244017,-410.45523344,0.00019159,2]
[364433358,1749100244028,-1702.21,0.00019177,2]
[364433360,1749100244038,-400.0,0.00019178,2]
[364433362,1749100244048,-400.0,0.00019178,2]
[364433364,1749100244060,-400.0,0.00019178,2]
[364433366,1749100244070,-400.0,0.00019178,2]
[364433368,1749100244079,-400.0,0.00019178,2]
[364433370,1749100244089,-440.0,0.00019178,2]
[364433372,1749100244098,-440.0,0.00019178,2]
[364433374,1749100244108,-440.0,0.00019178,2]
[364433376,1749100244118,-440.0,0.00019178,2]
[364433378,1749100244129,-440.0,0.00019178,2]
[364433380,1749100244139,-440.0,0.00019178,2]
[364433382,1749100244148,-440.0,0.00019178,2]
[364433385,1749100244158,-440.0,0.00019178,2]
[364433387,1749100244168,-229.741632,0.00019178,2]
[364433388,1749100244177,-255.98330596,0.00019182,2]
[364433391,1749100244187,-440.0,0.0001934,2]
[364433393,1749100244197,-440.0,0.0001934,2]
[364433395,1749100244207,-1640.21,0.0001934,2]
[364433397,1749100244218,-440.0,0.0001934,2]
[364433398,1749100244228,-440.0,0.0001934,2]
[364433401,1749100244237,-809.49862201,0.00019348,2]
[364433403,1749100244247,-492.26,0.00019388,2]
[364433405,1749100244258,-591.43,0.00019388,2]
[364433407,1749100244267,-496.33,0.00019388,2]
[364433408,1749100244276,-440.0,0.00019388,2]
[364433410,1749100244286,-480.36,0.00019388,2]
[364433412,1749100244295,-440.0,0.00019388,2]
[364433415,1749100244305,-440.0,0.00019388,2]
[364433416,1749100244315,-440.0,0.00019389,2]
[364433419,1749100244324,-827.92,0.00019389,2]
[364433421,1749100244333,-440.0,0.00019389,2]
[364433423,1749100244343,-1025.71001826,0.0001948,2]
[364433425,1749100244352,-1702.21,0.00019498,2]
[364433426,1749100244362,-1702.21,0.00019499,2]
[364433428,1749100244371,-18519.14631584,0.000195,2]
[364433430,1749100244380,-500.000001,0.0001958,2]
[364433432,1749100244390,-809.49862201,0.0001959,2]
[364433434,1749100244400,-5000.0,0.000196,3]
[364433436,1749100244410,-506.0,0.00019614,2]
[364433438,1749100244420,-1702.21,0.00019614,2]
[364433440,1749100244429,-440.0,0.00019614,2]
[364433442,1749100244439,-1640.21,0.00019614,2]
[364433444,1749100244449,-440.0,0.00019614,2]
[364433446,1749100244460,-440.0,0.00019614,2]
[364433448,1749100244470,-492.26,0.00019662,2]
[364433450,1749100244479,-591.43,0.00019662,2]
[364433452,1749100244489,-496.33,0.00019662,2]
[364433454,1749100244497,-440.0,0.00019662,2]
[364433456,1749100244507,-480.36,0.00019662,2]
[364433458,1749100244516,-440.0,0.00019662,2]
[364433460,1749100244525,-440.0,0.00019662,2]
[364433462,1749100244534,-440.0,0.00019663,2]
[364433464,1749100244549,-827.92,0.00019663,2]
[364433466,1749100244558,-358.44,0.00019663,2]
[364433468,1749100244567,-809.49862201,0.00019831,2]
[364433470,1749100244577,-694.339,0.00019856,2]
[364433472,1749100244586,-178.90431822,0.00019856,2]
[364433474,1749100244597,-1702.21,0.00019858,2]
[364433476,1749100244606,-151.0,0.00019858,2]
[364433478,1749100244615,-152.69387958,0.00019858,2]
[364433480,1749100244624,-500.0,0.00019858,2]
[364433482,1749100244633,-1800.0,0.00019858,2]
[364433484,1749100244643,-500.0,0.00019858,2]
[364433486,1749100244653,-500.0,0.00019858,2]
[364433488,1749100244662,-500.0,0.00019858,2]
[364433490,1749100244675,-1800.0,0.00019858,2]
[364433492,1749100244684,-1800.0,0.00019858,2]
[364433494,1749100244695,-500.0,0.00019858,2]
[364433496,1749100244704,-514.26776168,0.00019858,2]
[364433498,1749100244716,-1800.0,0.00019858,2]
[364433500,1749100244726,-207.4,0.00019858,2]
[364433502,1749100244736,-1800.0,0.00019858,2]
[364433504,1749100244745,-1800.0,0.00019858,2]
[364433506,1749100244755,-362.78152248,0.00019858,2]
[364433508,1749100244765,-5000.0,0.00019858,2]
[364433510,1749100244774,-286.50857892,0.00019858,2]
[364433512,1749100244784,-501.7496102,0.0001988,2]
[364433514,1749100244793,-440.0,0.00019888,2]
[364433516,1749100244803,-1640.21,0.00019888,2]
[364433518,1749100244813,-440.0,0.00019888,2]
[364433520,1749100244823,-440.0,0.00019888,2]
[364433522,1749100244832,-492.26,0.00019936,2]
[364433524,1749100244841,-591.43,0.00019936,2]
[364433526,1749100244850,-496.33,0.00019936,2]
[364433528,1749100244859,-440.0,0.00019936,2]
[364433530,1749100244868,-480.36,0.00019936,2]
[364433532,1749100244877,-541.53,0.00019936,2]
[364433534,1749100244886,-440.0,0.00019936,2]
[364433536,1749100244896,-486.74,0.00019937,2]
[364433538,1749100244905,-827.92,0.00019937,2]
[364433540,1749100244914,-500.0,0.00019973,2]
[364433542,1749100244924,-500.0,0.00019973,2]
[364433544,1749100244933,-500.0,0.00019973,2]
[364433546,1749100244942,-500.0,0.00019973,2]
[364433548,1749100244952,-160.33666408,0.00019973,2]
[364433550,1749100244962,-500.0,0.00019973,2]
[364433552,1749100244971,-575.67400562,0.00019973,2]
[364433554,1749100244982,-500.0,0.00019973,2]
[364433556,1749100244993,-500.0,0.00019973,2]
[364433558,1749100245002,-500.0,0.00019973,2]
[364433560,1749100245011,-502.76889791,0.00019973,2]
[364433562,1749100245023,-500.0,0.00019973,2]
[364433563,1749100245037,-500.0,0.00019973,2]
[364433566,1749100245047,-500.0,0.00019973,2]
[364433568,1749100245059,-151.58253384,0.00019973,2]
[364433569,1749100245068,-501.42015741,0.00019973,2]
[364433571,1749100245078,-501.74862657,0.00019973,2]
[364433573,1749100245087,-439.89324167,0.00019973,2]
[364433575,1749100245097,-501.14218236,0.00019973,2]
[364433577,1749100245107,-501.06385381,0.00019973,2]
[364433579,1749100245116,-501.19042897,0.00019973,2]
[364433582,1749100245125,-500.0,0.00019973,2]
[364433584,1749100245135,-500.0,0.00019973,2]
[364433585,1749100245143,-501.83219979,0.00019973,2]
[364433587,1749100245152,-211.58036217,0.00019973,2]
[364433589,1749100245162,-500.0,0.00019973,2]
[364433591,1749100245171,-500.0,0.00019973,2]
[364433593,1749100245181,-501.34650844,0.00019973,2]
[364433595,1749100245190,-500.0,0.00019973,2]
[364433597,1749100245199,-500.0,0.00019973,2]
[364433599,1749100245208,-503.51093668,0.00019973,2]
[364433601,1749100245217,-501.73049745,0.00019973,2]
[364433603,1749100245226,-500.0,0.00019973,2]
[364433605,1749100245236,-500.0,0.00019973,2]
[364433607,1749100245247,-500.0,0.00019973,2]
[364433609,1749100245256,-171.51331055,0.00019973,2]
[364433611,1749100245265,-501.43291838,0.00019973,2]
[364433613,1749100245274,-500.0,0.00019973,2]
[364433615,1749100245283,-500.0,0.00019973,2]
[364433617,1749100245292,-600.0,0.00019973,2]
[364433619,1749100245301,-1702.21,0.00019997,2]
[364433621,1749100245310,-1702.21,0.00019999,2]
[364433623,1749100245320,-1702.21,0.00019999,2]
[364433625,1749100245329,-1702.21,0.00019999,2]
[364433627,1749100245340,-1702.21,0.00019999,2]
[364433629,1749100245349,-1702.21,0.00019999,2]
[364433631,1749100245358,-1702.21,0.00019999,2]
[364433633,1749100245367,-1702.21,0.00019999,2]
[364433635,1749100245377,-1702.21,0.00019999,2]
[364433637,1749100245388,-1702.21,0.00019999,2]
[364433639,1749100245397,-1702.395659,0.00019999,2]
[364433641,1749100245408,-9147.0,0.0002,2]
[364433643,1749100245417,-502.4189967,0.0002,2]
[364433645,1749100245427,-188.40711459,0.0002,2]
[364433647,1749100245437,-6305.96068547,0.0002,2]
[364433649,1749100245447,-1182.60095131,0.0002,2]
[364433651,1749100245456,-360.11240348,0.0002,2]
[364433653,1749100245468,-23765.85952362,0.0002,2]
[364433655,1749100245477,-171421.0,0.0002,2]
[364433657,1749100245487,-19036.42352852,0.0002,3]
[364433700,1749100245940,-300.0,0.00019177,2]
[364433702,1749100245950,-963.57647148,0.0002,3]
[364433704,1749100245961,-3000.0,0.0002,2]
[364433706,1749100245970,-301.45292597,0.0002,2]
[364433708,1749100245980,-3000.0,0.0002001,2]
[364433710,1749100245994,-3000.0,0.0002002,2]
[364433712,1749100246003,-3000.0,0.0002003,2]
[364433714,1749100246013,-3000.0,0.0002004,2]
[364433716,1749100246022,-529.1535668,0.0002005,2]
[364433726,1749100246107,-2470.8464332,0.0002005,2]
[364433728,1749100246117,-3000.0,0.0002006,2]
[364433729,1749100246128,-802.89526876,0.00020068,2]
[364433732,1749100246139,-597.10473124,0.00020068,2]
[364433734,1749100246148,-3000.0,0.0002007,2]
[364433736,1749100246157,-809.49862201,0.00020072,2]
[364433738,1749100246166,-3000.0,0.0002008,2]
[364433740,1749100246175,-3000.0,0.0002009,2]
[364433742,1749100246184,-3000.0,0.000201,2]
[364433744,1749100246194,-1497.97332961,0.0002011,2]
[364435038,1749100829699,162.17266,0.00025,120]
[364435039,1749100979339,157.31718364,0.00013699,2]
[364435043,1749101104292,-329.34597389,0.000157,2]
[364435075,1749101247341,500.0,0.00022,120]
[364435076,1749101248136,500.0,0.00022,120]
[364435077,1749101248905,500.0,0.00022,120]
[364435078,1749101249726,500.0,0.00022,120]
[364435079,1749101250506,500.0,0.00022,120]
[364435081,1749101251323,500.0,0.00022,120]
[364435082,1749101251810,4015.93318362,0.00025,120]
[364435083,1749101252083,500.0,0.00022,120]
[364435084,1749101252226,150.5,0.0002328,120]
[364435085,1749101252846,150.5,0.0002327,120]
[364435086,1749101252911,500.0,0.00022,120]
[364435087,1749101253178,285.4,0.0002326,120]
[364435088,1749101253818,500.0,0.00022,120]
[364435089,1749101254732,500.0,0.00022,120]
[364435090,1749101255403,500.0,0.00022,120]
[364435091,1749101256173,500.0,0.00022,120]
[364435092,1749101256959,500.0,0.00022,120]
[364435093,1749101257733,500.0,0.00022,120]
[364435094,1749101258516,500.0,0.00022,120]
[364435095,1749101259305,500.0,0.00022,120]
[364435096,1749101260064,500.0,0.00022,120]
[364435097,1749101260886,500.0,0.00022,120]
[364435098,1749101261650,500.0,0.00022,120]
[364435099,1749101262429,500.0,0.00022,120]
[364435100,1749101263287,500.0,0.00022,120]
[364435101,1749101264062,500.0,0.00022,120]
[364435103,1749101264921,500.0,0.00022,120]
[364435104,1749101265599,500.0,0.00022,120]
[364435106,1749101266372,500.0,0.00022,120]
[364435107,1749101267133,500.0,0.00022,120]
[364435108,1749101267904,500.0,0.00022,120]
[364435109,1749101268840,500.0,0.00022,120]
[364435110,1749101269014,203.96916026,0.000246,120]
[364435111,1749101269610,500.0,0.00022,120]
[364435112,1749101270394,500.0,0.00022,120]
[364435113,1749101271309,500.0,0.00022,120]
[364435115,1749101272079,500.0,0.00022,120]
[364435116,1749101272855,500.0,0.00022,120]
[364435117,1749101273652,500.0,0.00022,120]
[364435118,1749101274431,500.0,0.00022,120]
[364435119,1749101275205,500.0,0.00022,120]
[364435120,1749101276098,500.0,0.00022,120]
[364435121,1749101276841,500.0,0.00022,120]
[364435122,1749101277579,500.0,0.00022,120]
[364435123,1749101278348,500.0,0.00022,120]
[364435125,1749101279114,500.0,0.00022,120]
[364435126,1749101279884,500.0,0.00022,120]
[364435128,1749101280667,500.0,0.00022,120]
[364435130,1749101281436,500.0,0.00022,120]
[364435131,1749101282224,500.0,0.00022,120]
[364435132,1749101282999,500.0,0.00022,120]
[364435134,1749101283785,340.78,0.00022,120]
[364435136,1749101292542,267.32185265,0.00024212,120]
[364435137,1749101294904,543.23823961,0.00024212,120]
[364435138,1749101301160,912.02592374,0.00024212,120]
[364435139,1749101304259,550.10393069,0.00024212,120]
[364435141,1749101306803,164.46933971,0.00024212,120]
[364435142,1749101309253,841.23161445,0.00024212,120]
[364435143,1749101310272,685.40852789,0.00024212,120]
[364435144,1749101310452,175.24122874,0.00024212,120]
[364435145,1749101311544,240.82074905,0.00024212,120]
[364435146,1749101312612,477.87567272,0.0002,120]
[364435147,1749101312782,241.11963927,0.00024212,120]
[364435148,1749101313309,1131.98482402,0.00024212,120]
[364435149,1749101313981,855.5609804,0.00024212,120]
[364435150,1749101314160,2000.0,0.00024212,120]
[364435151,1749101314293,3044.68069481,0.00024212,120]
[364435152,1749101314961,1095.96401668,0.00024212,120]
[364435154,1749101315451,357.3739,0.00024108,120]
[364435155,1749101316805,1790.15319141,0.00024,120]
[364435156,1749101317710,1026.1803021,0.00024212,120]
[364435157,1749101317743,1003.24787654,0.00024212,120]
[364435158,1749101318286,462.40496067,0.00024212,120]
[364435159,1749101318476,336.39720639,0.00024212,120]
[364435160,1749101318562,1315.38947814,0.00024212,120]
[364435161,1749101318932,1556.6794523,0.00024212,120]
[364435162,1749101319218,264.08937684,0.00024212,120]
[364435163,1749101319535,424.75856712,0.00024212,120]
[364435164,1749101319566,214.99639483,0.00024212,120]
[364435165,1749101319640,726.0760596,0.00024212,120]
[364435166,1749101319672,283.22845196,0.00024212,120]
[364435169,1749101320900,315.63309086,0.00024212,120]
[364435170,1749101321017,1078.24511232,0.00024212,120]
[364435171,1749101321074,202.89503316,0.00024212,120]
[364435173,1749101322297,582.43101313,0.00024212,120]
[364435174,1749101322329,496.00540886,0.00024212,120]
[364435175,1749101322495,217.73628772,0.0001536,120]
[364435176,1749101323359,532.12258385,0.00024212,120]
[364435183,1749101324174,218.4592473,0.00024212,120]
[364435186,1749101324505,4649.02792618,0.00024212,120]
[364435188,1749101324714,1162.8750994,0.00022,120]
[364435240,1749101378418,500.0,0.00025,120]
[364435241,1749101385214,500.0,0.00025,120]
[364435242,1749101392218,500.0,0.00025,120]
[364435246,1749101403233,501.0,0.00024658,120]
[364435250,1749101419812,280.07893,0.00025,120]
[364435253,1749101426881,164.4693397,0.00024212,120]
[364435289,1749101432120,-1905.17788098,0.000157,2]
[364435291,1749101432130,-240.02681948,0.00017176,2]
[364435292,1749101432139,-1722.04,0.00017276,2]
[364435294,1749101432149,-290.5682216,0.00018197,2]
[364435297,1749101432159,-3444.07,0.00018842,2]
[364435299,1749101432169,-1200.0,0.00018872,2]
[364435301,1749101432183,-300.0,0.00018873,2]
[364435304,1749101432198,-300.0,0.00018873,2]
[364435306,1749101432207,-300.0,0.00018873,2]
[364435308,1749101432217,-300.0,0.00018874,2]
[364435310,1749101432228,-440.0,0.00018898,2]
[364435312,1749101432236,-440.0,0.00018898,2]
[364435314,1749101432246,-430.0,0.00018899,2]
[364435316,1749101432255,-430.0,0.00018899,2]
[364435318,1749101432264,-380.0,0.00018899,2]
[364435320,1749101432274,-440.0,0.00018899,2]
[364435322,1749101432283,-430.0,0.00018899,2]
[364435324,1749101432292,-440.0,0.00018899,2]
[364435326,1749101432301,-430.0,0.00018899,2]
[364435328,1749101432310,-452.29,0.00018899,2]
[364435330,1749101432319,-440.0,0.00018899,2]
[364435332,1749101432328,-430.0,0.00018899,2]
[364435334,1749101432338,-430.0,0.00018899,2]
[364435335,1749101432347,-186.366201,0.00018899,2]
[364435337,1749101432356,-481.69,0.00018899,2]
[364435339,1749101432365,-440.0,0.00018899,2]
[364435341,1749101432375,-430.0,0.00018899,2]
[364435343,1749101432389,-130.29190621,0.00018899,2]
[364435980,1749101446294,-440.0,0.00018898,2]
[364435981,1749101446305,-299.70809379,0.00018899,2]
[364435982,1749101446315,-430.0,0.00018899,2]
[364435983,1749101446324,-330.82302092,0.00018899,2]
[364435984,1749101446334,-430.0,0.00018899,2]
[364435985,1749101446344,-430.0,0.00018899,2]
[364435986,1749101446353,-430.0,0.00018899,2]
[364435987,1749101446363,-430.0,0.00018899,2]
[364435988,1749101446372,-430.0,0.00018899,2]
[364435989,1749101446381,-430.0,0.00018899,2]
[364435990,1749101446392,-430.0,0.00018899,2]
[364435991,1749101446403,-461.81979733,0.00018899,2]
[364435993,1749101446412,-440.0,0.00018899,2]
[364435994,1749101446422,-163.5218092,0.00018899,2]
[364435995,1749101446431,-205.21767907,0.00018899,2]
[364435996,1749101446439,-430.0,0.00018899,2]
[364435997,1749101446449,-430.0,0.00018899,2]
[364435998,1749101446458,-564.92835148,0.00018899,2]
[364435999,1749101446467,-432.81345013,0.00018899,2]
[364436000,1749101446476,-440.0,0.00018899,2]
[364436001,1749101446487,-440.0,0.00018899,2]
[364436002,1749101446496,-437.37092502,0.00018899,2]
[364436003,1749101446505,-430.0,0.00018899,2]
[364436004,1749101446514,-160.0,0.00018921,2]
[364436005,1749101446523,-229.48950782,0.00018921,2]
[364436006,1749101446532,-160.0,0.00018928,2]
[364436007,1749101446542,-423.7637613,0.00018928,2]
[364436008,1749101446551,-175.09909599,0.00019168,2]
[364436009,1749101446560,-440.0,0.00019172,2]
[364436010,1749101446570,-440.0,0.00019172,2]
[364436011,1749101446579,-440.0,0.00019172,2]
[364436012,1749101446589,-440.0,0.00019177,2]
[364436013,1749101446598,-440.0,0.00019177,2]
[364436014,1749101446607,-183.793305,0.00019178,2]
[364436015,1749101446616,-256.5345209,0.00019351,2]
[364436016,1749101446625,-86.06907477,0.0001941,2]
[364436017,1749101446637,-94.12373153,0.0001941,2]
[364436018,1749101446647,-732.716885,0.00019425,2]
[364436019,1749101446656,-440.0,0.00019446,2]
[364436021,1749101446666,-440.0,0.00019446,2]
[364436023,1749101446676,-440.0,0.00019446,2]
[364436025,1749101446686,-440.0,0.00019451,2]
[364436027,1749101446696,-174.98859259,0.00019451,2]
[364436029,1749101446705,-498.96722,0.00019707,2]
[364436031,1749101446715,-448.45,0.0001972,2]
[364436033,1749101446724,-440.0,0.0001972,2]
[364436035,1749101446733,-888.44,0.0001972,2]
[364436037,1749101446742,-440.0,0.0001972,2]
[364436039,1749101446751,-440.0,0.0001972,2]
[364436041,1749101446761,-440.0,0.0001972,2]
[364436043,1749101446770,-440.0,0.0001972,2]
[364436045,1749101446778,-440.0,0.0001972,2]
[364436047,1749101446789,-440.0,0.00019725,2]
[364436049,1749101446798,-440.0,0.00019858,2]
[364436051,1749101446807,-373.59815041,0.00019858,2]
[364436053,1749101446817,-177.84558405,0.00019858,2]
[364436055,1749101446826,-207.4,0.00019858,2]
[364436057,1749101446836,-5000.0,0.00019858,2]
[364436059,1749101446846,-555.472,0.00019863,2]
[364436061,1749101446855,-561.77134061,0.000199,2]
[364436063,1749101446865,-448.45,0.00019994,2]
[364436065,1749101446875,-440.0,0.00019994,2]
[364436067,1749101446884,-888.44,0.00019994,2]
[364436069,1749101446894,-440.0,0.00019994,2]
[364436071,1749101446907,-440.0,0.00019994,2]
[364436073,1749101446916,-440.0,0.00019994,2]
[364436075,1749101446926,-440.0,0.00019994,2]
[364436077,1749101446935,-439.56224435,0.00019994,2]
[364437251,1749101703238,501.0,0.00024658,120]
[364437255,1749101749509,284.219315,0.00013699,2]
[364437272,1749101926622,26244.0,0.00025,120]
[364437317,1749102145092,213.99632772,0.00013699,2]
[364437384,1749102256787,2000.0,0.00018499,120]
[364437401,1749102425027,184.046707,0.00018423,120]
[364437647,1749102521810,414.64,0.00025,120]
[364437716,1749102632605,-385.83333708,0.00017565,2]
[364437717,1749102632616,-1242.27666292,0.00017565,2]
[364437718,1749102632625,-209.888116,0.00018261,2]
[364437719,1749102632635,-184.046707,0.00018423,2]
[364437720,1749102632644,-691.9232132,0.00018896,2]
[364437721,1749102632655,-508.0767868,0.00018896,2]
[364437722,1749102632665,-300.0,0.00018897,2]
[364437723,1749102632674,-300.0,0.00018897,2]
[364437724,1749102632684,-300.0,0.00018897,2]
[364437725,1749102632693,-282.0,0.00018897,2]
[364437726,1749102632703,-440.0,0.00018898,2]
[364437727,1749102632711,-467.5,0.00018898,2]
[364437728,1749102632721,-440.0,0.00018898,2]
[364437729,1749102632731,-440.0,0.00018898,2]
[364437730,1749102632740,-440.0,0.00018898,2]
[364437731,1749102632749,-440.0,0.00018898,2]
[364437732,1749102632758,-443.30625302,0.00018898,2]
[364437733,1749102632768,-440.0,0.00018898,2]
[364437734,1749102632777,-315.44620358,0.00018898,2]
[364437735,1749102632786,-440.0,0.00018898,2]
[364437736,1749102632795,-440.0,0.00018898,2]
[364437737,1749102632805,-430.0,0.00018898,2]
[364437738,1749102632814,-430.0,0.00018898,2]
[364437739,1749102632823,-573.47976568,0.00018898,2]
[364437740,1749102632833,-157.54435566,0.00018898,2]
[364437769,1749102638112,-282.45564434,0.00018898,2]
[364437770,1749102638121,-160.0,0.0001893,2]
[364437771,1749102638131,-160.0,0.0001893,2]
[364437772,1749102638141,-842.5625,0.0001893,2]
[364437773,1749102638150,-212.94059491,0.0001893,2]
[364437774,1749102638159,-229.48950782,0.00018931,2]
[364437775,1749102638169,-175.0169326,0.000191,2]
[364437776,1749102638179,-572.8183099,0.000191,2]
[364437777,1749102638188,-176.6394256,0.000191,2]
[364437778,1749102638198,-158.6024443,0.000191,2]
[364437779,1749102638207,-176.6394256,0.000191,2]
[364437780,1749102638216,-572.8183099,0.000191,2]
[364437781,1749102638226,-176.6394256,0.000191,2]
[364437782,1749102638235,-158.6024443,0.000191,2]
[364437783,1749102638245,-572.8183099,0.000191,2]
[364437784,1749102638254,-3256.21,0.00019162,2]
[364437785,1749102638263,-440.0,0.00019171,2]
[364437786,1749102638272,-440.0,0.00019172,2]
[364437787,1749102638281,-440.0,0.00019173,2]
[364437788,1749102638291,-440.0,0.00019173,2]
[364437789,1749102638300,-440.0,0.00019173,2]
[364437790,1749102638309,-440.0,0.00019173,2]
[364437792,1749102638318,-440.0,0.00019173,2]
[364437794,1749102638328,-440.0,0.00019178,2]
[364437796,1749102638337,-440.0,0.00019178,2]
[364437797,1749102638346,-440.0,0.00019444,2]
[364437798,1749102638355,-440.0,0.00019444,2]
[364437799,1749102638373,-440.0,0.00019445,2]
[364437800,1749102638384,-440.0,0.00019445,2]
[364437801,1749102638394,-440.0,0.00019445,2]
[364437802,1749102638404,-440.0,0.00019445,2]
[364437803,1749102638414,-440.0,0.00019445,2]
[364437804,1749102638423,-154.4526129,0.00019446,2]
[364437805,1749102638432,-501.86,0.00019446,2]
[364437806,1749102638442,-440.0,0.00019447,2]
[364437807,1749102638451,-440.0,0.00019447,2]
[364437808,1749102638461,-175.7873979,0.000195,2]
[364437809,1749102638471,-158.6024443,0.000195,2]
[364437810,1749102638480,-572.8183099,0.000195,2]
[364437811,1749102638490,-316.5941988,0.000195,2]
[364437812,1749102638500,-572.8183099,0.000195,2]
[364437813,1749102638510,-572.8183099,0.000195,2]
[364437814,1749102638520,-449.070498,0.00019707,2]
[364437815,1749102638529,-440.0,0.00019718,2]
[364437816,1749102638539,-168.44,0.00019718,2]
[364437817,1749102638548,-375.79,0.00019719,2]
[364437818,1749102638558,-481.68,0.00019719,2]
[364437819,1749102638568,-440.0,0.00019719,2]
[364437820,1749102638578,-440.0,0.00019719,2]
[364437821,1749102638587,-440.0,0.00019719,2]
[364437822,1749102638597,-440.0,0.00019719,2]
[364437823,1749102638607,-440.0,0.00019719,2]
[364437824,1749102638616,-867.26,0.00019719,2]
[364437825,1749102638626,-440.0,0.00019719,2]
[364437826,1749102638636,-440.0,0.00019721,2]
[364437827,1749102638647,-440.0,0.00019721,2]
[364437828,1749102638657,-176.6394256,0.000198,2]